Cogmind - Beta 16 @@@ ROGUE MODE // 2025.11.14 @ 05:24:59 // AFD2019/Pay2Buy Player: GFYguy Result: Self-destructed Performance ------------- Evolutions (2) 1000 Regions Visited (5) 1000 Robots Destroyed (10) 50 Value Destroyed (272) 272 Prototype IDs (25) 500 Alien Tech Used (0) 0 Bonus (300) 300 TOTAL SCORE: 3122 Bonus ------- Aligned with FarCom 300 Cogmind --------- Core Integrity 411/550 Matter 280/300 Energy 240/240 System Corruption 0% Temperature Cool (90) Movement Flying (195) Ox2 Location -8/Materials Parts ------- > --- POWER (1) -------- Nuclear Core > --- PROPULSION (5) --- VTOL Module > --- UTILITY (3) ------ Sensor Array > --- WEAPON (2) ------- Mining Laser Maul > --- INVENTORY (10) --- Scrap Suit Hardened Light Armor Plating Z-bomb Delivery System Peak State ------------ > --- POWER ------------ Nuclear Core > --- PROPULSION ------- VTOL Module VTOL Module Improved Cesium-ion Thruster > --- UTILITY ---------- Sensor Array > --- WEAPON ----------- Mining Laser Maul > --- INVENTORY -------- Scrap Suit Hardened Light Armor Plating Z-bomb Delivery System [Rating: 18] Favorites ----------- Power Light Ion Engine Engine Light Ion Engine Power Core Nuclear Core Propulsion VTOL Module Flight Unit VTOL Module Utility Sensor Array Device Sensor Array Protection Hardened Light Armor Plating Weapon Maul Special Weapon Mining Laser Impact Weapon Maul Build | -11 -10 -10 -10 -9 -8 ------- Run | Yrd Mat Min Exi Min Mat Slots Evolved 4 | . . . . . 4 Power . | . . . . . . Propulsion 3 | . . . . . 3 Utility 1 | . . . . . 1 Weapon . | . . . . . . Parts Attached 3 | . . . . . 3 Power 1 | . . . . . 1 Engine . | . . . . . . Core 1 | . . . . . 1 Reactor . | . . . . . . Propulsion . | . . . . . . Treads . | . . . . . . Leg . | . . . . . . Wheel . | . . . . . . Hover . | . . . . . . Flight . | . . . . . . Utility . | . . . . . . Device . | . . . . . . Storage . | . . . . . . Processor . | . . . . . . Hackware . | . . . . . . Protection . | . . . . . . Artifact . | . . . . . . Weapon 2 | . . . . . 2 Energy Gun . | . . . . . . Energy Cannon . | . . . . . . Ballistic Gun . | . . . . . . Ballistic Cannon . | . . . . . . Launcher . | . . . . . . Special Weapon 1 | . . . . . 1 Impact Weapon 1 | . . . . . 1 Slashing Weapon . | . . . . . . Piercing Weapon . | . . . . . . Special Melee Weapon . | . . . . . . Unidentified Prototypes . | . . . . . . Parts Lost 3 | . . . . . 3 Power 1 | . . . . . 1 Propulsion 2 | . . . . . 2 Utility . | . . . . . . Weapon . | . . . . . . Highest Loss Streak 2 | . . . . . 2 To Critical Strikes . | . . . . . . Average Backups 3 | . 1 3 3 4 3 Power . | . . 1 1 1 . Propulsion . | . . . . . . Utility 1 | . . 1 1 1 2 Weapon 1 | . . 1 1 1 1 Tool/Special . | . . . . . . Unused Backups 1 | . . . . . 1 Power . | . . . . . . Propulsion . | . . . . . . Utility 1 | . . . . . 1 Weapon . | . . . . . . Tool/Special . | . . . . . . Average Slot Usage (%) 63 | . 71 71 71 71 50 Engine 8 | . 14 14 14 14 . Core 1 | . . . . . 4 Flight 25 | . 28 28 28 28 22 Device 12 | . 14 14 14 14 9 Special Weapon 1 | . . . . . 4 Impact Weapon 12 | . 14 14 14 14 9 Peak Build Rating 18 | 8 11 9 9 10 18 Average Rating 10 | 8 8 9 9 9 13 On Entrance 7 | . 8 9 9 9 10 Avg Prop Armor Cover (%) . | . . . . . . Naked Turns . | . . . . . . Heaviest Build 12 | 7 7 7 7 7 12 Greatest Support 14 | 8 8 8 8 8 14 Greatest Overweight (x) 2 | . . . . . 2 Average Overweight (x) . | . . . . . . Largest Inventory Capacity 10 | 10 10 10 10 10 10 Average Capacity 10 | 10 10 10 10 10 10 Most Carried 6 | . 3 3 3 6 6 Average Carried 3 | . 1 3 3 4 4 Final Capacity 10 | 10 10 10 10 10 10 Final Carried 6 | . 3 3 3 6 4 Class Distribution -------------------- 57% | Scout 40% | Sprinter Dominant Class ---------------- Sprinter | -10/Materials Sprinter | -10/Mines Sprinter | -10/Exiles Scout | -9/Mines Scout | -8/Materials Resources | -11 -10 -10 -10 -9 -8 ----------- Run | Yrd Mat Min Exi Min Mat Matter Collected 200 | . 200 . . . . Remotely . | . . . . . . Salvage Created 352 | . 192 . . . 160 Parts . | . . . . . . Haulers Intercepted 1 | . 1 . . . . Recyclers Shooed . | . . . . . . Parts Field Recycled . | . . . . . . Retrieved Matter . | . . . . . . Parts Self-Destructed . | . . . . . . Prevented . | . . . . . . Parts Restored . | . . . . . . Kills | -11 -10 -10 -10 -9 -8 ------- Run | Yrd Mat Min Exi Min Mat Combat Hostiles Destroyed 6 | . 3 . . . 3 Melee 1 | . . . . . 1 Classes Destroyed 6 | . 4 . . . 2 Worker 1 | . . . . . 1 Hauler 1 | . 1 . . . . Operator 1 | . 1 . . . . Watcher 1 | . 1 . . . . Grunt 3 | . 3 . . . . Sentry 3 | . . . . . 3 Best Kill Streak 5 | . 5 . . . 3 Combat Bots Only 3 | . 3 . . . 2 Max Kills in Single Turn 1 | . 1 . . . 1 Gunslinging . | . . . . . . Exploded . | . . . . . . Melee 1 | . . . . . 1 Uniques/NPCs Destroyed . | . . . . . . Combat | -11 -10 -10 -10 -9 -8 -------- Run | Yrd Mat Min Exi Min Mat Hostile Shots Fired 30 | . 14 1 . . 15 Missed 8 | . 5 . . . 3 Hits 22 | . 9 1 . . 12 Melee 2 | . . . . . 2 Projectile 20 | . 9 1 . . 10 Critical Strikes 1 | . . . . . 1 Damage Taken 414 | . 102 10 . . 302 Core 207 | . 68 . . . 139 Absorbed by Shields . | . . . . . . Core Remaining (%) 86 | 100 . . . 72 . Volleys Fired 28 | . . . . . 28 Largest 1 | . . . . . 1 Hottest 100 | . . . . . 100 Shots Fired 28 | . . . . . 28 Gun . | . . . . . . Cannon . | . . . . . . Launcher . | . . . . . . Special 28 | . . . . . 28 Kinetic . | . . . . . . Thermal 28 | . . . . . 28 Explosive . | . . . . . . Electromagnetic . | . . . . . . Robot Hit Streak . | . . . . . . Robot Miss Streak . | . . . . . . Penetration Max . | . . . . . . Secondary Targets . | . . . . . . Shots Hit Robots 19 | . 12 . . . 7 Core Hits 1 | . . . . . 1 Critical Kills . | . . . . . . Critical Parts Destroyed 5 | . 4 . . . 1 Critical Strikes 5 | . 4 . . . 1 Smash 5 | . 4 . . . 1 Melee Attacks 22 | . 15 . . . 7 Impact 22 | . 15 . . . 7 Slashing . | . . . . . . Piercing . | . . . . . . Sneak Attacks 2 | . 1 . . . 1 Combat Hostiles . | . . . . . . Follow-up Attacks . | . . . . . . Damage Inflicted 911 | . 639 . . . 272 Guns . | . . . . . . Cannons . | . . . . . . Explosions . | . . . . . . Melee 911 | . 639 . . . 272 Ramming . | . . . . . . Kinetic . | . . . . . . Thermal . | . . . . . . Explosive . | . . . . . . Electromagnetic . | . . . . . . Impact 911 | . 639 . . . 272 Slashing . | . . . . . . Piercing . | . . . . . . Highest Corruption . | . . . . . . Average Corruption . | . . . . . . Corruption Purged . | . . . . . . Corruption Blocked . | . . . . . . Overload Shots . | . . . . . . Overflow Damage 369 | . 277 . . . 92 Projectiles . | . . . . . . Explosions . | . . . . . . Melee 369 | . 277 . . . 92 Knockbacks 2 | . 1 . . . 1 Impact 2 | . 1 . . . 1 Kinetic . | . . . . . . Secondary . | . . . . . . Self-Inflicted Damage . | . . . . . . Shots . | . . . . . . Rammed . | . . . . . . Targets Rammed . | . . . . . . Kicked . | . . . . . . Crushed . | . . . . . . Highest Temperature 227 | . . . . . 227 Average Temperature 90 | . . . . . 90 Received Heat Transfer 90 | . 54 . . . 36 Siege Activations . | . . . . . . Martial Activations . | . . . . . . Shielding Activations . | . . . . . . Robots Disrupted . | . . . . . . Combat Hostiles . | . . . . . . Robots Corrupted 8 | . 5 . . . 3 Combat Hostiles 5 | . 3 . . . 2 Parts Fried . | . . . . . . Impact Corruptions 13 | . 9 . . . 4 Robots Melted . | . . . . . . Combat Hostiles . | . . . . . . Parts Melted . | . . . . . . Heat Transferred . | . . . . . . Parts Sabotaged . | . . . . . . Parts Stolen . | . . . . . . Parts Stripped . | . . . . . . Power Chain Reactions . | . . . . . . Alert | -11 -10 -10 -10 -9 -8 ------- Run | Yrd Mat Min Exi Min Mat Maximum Alert Level . | . . . . . . Low Security (%) 100 | 100 100 100 . 100 100 Level 1 . | . . . . . . Level 2 . | . . . . . . Level 3 . | . . . . . . Level 4 . | . . . . . . Level 5 . | . . . . . . High Security . | . . . . . . Max Security . | . . . . . . Peak Influence 80 | . 60 15 . . 80 Initial 13 | . . 13 . . . Average 19 | . 33 7 . . 26 Influence Increases 212 | . 89 15 . . 108 Destroy 0b10 Robot/C 120 | . 60 . . . 60 Destroy 0b10 Robot/NC 20 | . 15 . . . 5 Destroy Leader 44 | . 14 . . . 30 Destroy Structure 13 | . . . . . 13 Lose Combat Pursuer 15 | . . 15 . . . Influence Decreases 212 | . 55 44 5 . 108 Entered New Map 26 | . . 21 5 . . Time Decay 186 | . 55 23 . . 108 Squads Dispatched 4 | . 2 . . . 2 Investigation 1 | . 1 . . . . Extermination . | . . . . . . Reinforcement 3 | . 1 . . . 2 Assault . | . . . . . . Garrison . | . . . . . . Intercept . | . . . . . . Searches Triggered . | . . . . . . Construction Impeded . | . . . . . . Haulers Reinforced . | . . . . . . Active Scanning Responses . | . . . . . . Cargo Convoy Interrupts . | . . . . . . Stealth | -11 -10 -10 -10 -9 -8 --------- Run | Yrd Mat Min Exi Min Mat Distress Signals 1 | . 1 . . . . Communications Jammed . | . . . . . . Distress Signals . | . . . . . . Times Spotted 14 | . 4 3 . . 7 Peak Tracking Total 3 | . 2 3 . . 3 Tactical Retreats 1 | . . 1 . . . Traps | -11 -10 -10 -10 -9 -8 ------- Run | Yrd Mat Min Exi Min Mat Traps Triggered . | . . . . . . Indirectly . | . . . . . . Trap Hack Attempts . | . . . . . . Triggered . | . . . . . . Disarmed . | . . . . . . Reprogrammed . | . . . . . . Reused . | . . . . . . Traps Extracted . | . . . . . . Installed . | . . . . . . Triggered . | . . . . . . Machines | -11 -10 -10 -10 -9 -8 ---------- Run | Yrd Mat Min Exi Min Mat Machines Disabled . | . . . . . . Max in Single Turn . | . . . . . . Machines Repaired . | . . . . . . Machines Dismantled . | . . . . . . Machines Sabotaged . | . . . . . . Overloaded Fab Kills . | . . . . . . Hacking | -11 -10 -10 -10 -9 -8 --------- Run | Yrd Mat Min Exi Min Mat Machines Accessed 6 | . 1 . 3 1 1 Terminals 2 | . 1 . . . 1 Fabricators . | . . . . . . Repair Stations . | . . . . . . Recycling Units . | . . . . . . Scanalyzers . | . . . . . . Garrison Access . | . . . . . . Total Hacks 35 | . 2 . 31 1 1 Successful 32 | . . . 31 1 . Failed 3 | . 2 . . . 1 Catastrophic 2 | . 1 . . . 1 Database Lockouts . | . . . . . . Manual 1 | . . . 1 . . Terminals 3 | . 2 . . . 1 Fabricators . | . . . . . . Repair Stations . | . . . . . . Recycling Units . | . . . . . . Scanalyzers . | . . . . . . Garrison Access . | . . . . . . Terminal Hacks 32 | . . . 31 1 . Record 30 | . . . 30 . . Open Door 1 | . . . . 1 . Proto ID Catalog 1 | . . . 1 . . Fabricator Hacks . | . . . . . . Repair Station Hacks . | . . . . . . Recycling Unit Hacks . | . . . . . . Scanalyzer . | . . . . . . Garrison Access Hacks . | . . . . . . Unauthorized Hacks . | . . . . . . Terminals . | . . . . . . Fabricators . | . . . . . . Repair Stations . | . . . . . . Recycling Units . | . . . . . . Scanalyzers . | . . . . . . Garrison Access . | . . . . . . Data Cores Recovered 1 | . 1 . . . . Used 1 | . 1 . . . . Hacking Detections 2 | . 1 . . . 1 Full Trace Events 1 | . 1 . . . . Feedback Events . | . . . . . . Feedback Blocked . | . . . . . . Robot Schematics Acquired . | . . . . . . Robots Built . | . . . . . . Authchips . | . . . . . . Time . | . . . . . . Total Robot Build Rating . | . . . . . . Part Schematics Acquired . | . . . . . . Parts Built . | . . . . . . Authchips . | . . . . . . Time . | . . . . . . Total Part Build Rating . | . . . . . . Part Studies Acquired . | . . . . . . Parts Repaired . | . . . . . . Time . | . . . . . . Parts Recycled . | . . . . . . Recycled Matter . | . . . . . . Retrieved Matter . | . . . . . . Retrieved Components . | . . . . . . Parts Scanalyzed . | . . . . . . Part Schematics Acquired . | . . . . . . Parts Damaged . | . . . . . . Bothacking | -11 -10 -10 -10 -9 -8 ------------ Run | Yrd Mat Min Exi Min Mat Used RIF Installer . | . . . . . . Robots Hacked . | . . . . . . Non-combat . | . . . . . . Combat . | . . . . . . Robot Hacks Applied . | . . . . . . Relay Couplers Released . | . . . . . . Fabnet Peak Effective % . | . . . . . . Robots Rewired . | . . . . . . Allies Hacked . | . . . . . . Hacks Repelled . | . . . . . . Allies | -11 -10 -10 -10 -9 -8 -------- Run | Yrd Mat Min Exi Min Mat Total Allies 1 | . . . . 1 . Largest Group 1 | . . . . 1 . Highest-Rated Group 31 | . . . . 31 . Highest-Rated Ally 31 | . . . . 31 . Total Orders . | . . . . . . Ally Attacks . | . . . . . . Total Damage . | . . . . . . Kills . | . . . . . . Allies Corrupted . | . . . . . . Allies Melted . | . . . . . . Intel | -11 -10 -10 -10 -9 -8 ------- Run | Yrd Mat Min Exi Min Mat Active Infowar (turns) 772 | 6 121 73 124 151 297 Sensors 772 | 6 121 73 124 151 297 Robot Analysis Total . | . . . . . . Derelict Logs Recovered . | . . . . . . Drone Launches . | . . . . . . Drone Recoveries . | . . . . . . Exploration | -11 -10 -10 -10 -9 -8 ------------- Run | Yrd Mat Min Exi Min Mat Turns Passed 772 | 6 121 73 124 151 297 Spaces Moved 1554 | 18 177 67 387 439 466 Core . | . . . . . . Treads . | . . . . . . Legs . | . . . . . . Wheels . | . . . . . . Hover . | . . . . . . Flight 1554 | 18 177 67 387 439 466 Fastest Speed 29 | 32 32 32 32 32 29 Average Speed 31 | 32 32 32 32 32 31 Slowest Speed 195 | 32 32 32 32 32 195 Overloaded Moves . | . . . . . . Propulsion Burnouts . | . . . . . . Robots Hopped 5 | . . . . . 5 Potential Cave-ins 11 | . . . . . 11 Cave-ins Triggered 1 | . . . . . 1 Exploration Rate (%) 44 | 3 44 19 87 91 24 Regions Visited 5 Branch Regions 3 Pre-discovered Areas 1 | . . . 1 . . Known Exits Taken . | . . . . . . Unknown Exits Taken 5 | 1 1 1 1 1 . Scrap Searched . | . . . . . . Spaces Dug 28 | . . . . . 28 Terrain Destroyed 28 | . . . . . 28 Melee . | . . . . . . Projectile 28 | . . . . . 28 AOE . | . . . . . . Terrain Rammed . | . . . . . . Walls Destroyed . | . . . . . . Machines Disabled . | . . . . . . Actions | -11 -10 -10 -10 -9 -8 --------- Run | Yrd Mat Min Exi Min Mat Total 1692 | 17 211 117 386 448 513 Wait 89 | . 18 51 . 8 12 Move 1538 | 17 176 66 386 438 455 Hop 5 | . . . . . 5 Pick Up 3 | . . . . 2 1 Fast Attach . | . . . . . . Attach 3 | . . . . . 3 Detach 2 | . 2 . . . . Swap . | . . . . . . Drop 1 | . . . . . 1 Fire 28 | . . . . . 28 Melee 22 | . 15 . . . 7 Ram . | . . . . . . Kick . | . . . . . . Crush . | . . . . . . Escape Stasis 1 | . . . . . 1 Rewire . | . . . . . . Trap . | . . . . . . Miscellaneous . | . . . . . . Route ------- -11/Scrapyard -10/Materials -10/Mines (discovered 2 exits: [*Mat] / *Exi) -10/Exiles -9/Mines -8/Materials History --------- Turn | Location | Event 2 | -11/Scrapyard | Discovered new exit (range 15) 7 | -11/Scrapyard | Entered Materials 105 | -10/Materials | Met 8R-AWN 111 | -10/Materials | Discovered new exit (range 14) 128 | -10/Materials | Entered Mines 129 | -10/Mines | Followed 8R-AWN into the Mines 130 | -10/Mines | Discovered new exit (range 14) 189 | -10/Mines | Discovered new exit (range 5) 201 | -10/Mines | Entered Exiles 210 | -10/Exiles | Welcomed by 8R-AWN 215 | -10/Exiles | Met EX-HEX 227 | -10/Exiles | Met EX-BIN 232 | -10/Exiles | Aligned with FarCom system 232 | -10/Exiles | Given EX-Vault access code 240 | -10/Exiles | Opened EX-Vault 254 | -10/Exiles | Warned to stay clear of 0b10 Research branches 262 | -10/Exiles | Met EX-DEC 275 | -10/Exiles | Visited The Gauntlet 311 | -10/Exiles | Build established: Sprinter 313 | -10/Exiles | Learned location of Zion (-6) 322 | -10/Exiles | Discovered new exit (range 14) 325 | -10/Exiles | Entered Mines 329 | -9/Mines | Received a Mining Laser from a helpful Derelict 372 | -9/Mines | Found the Drone Emporium 412 | -9/Mines | Found a hidden stash of uninstalled traps 440 | -9/Mines | Found a Scrap Suit stashed away for nefarious purposes 441 | -9/Mines | Found Scrap Suit 474 | -9/Mines | Discovered new exit (range 6) 476 | -9/Mines | Entered Materials 476 | -8/Materials | Evolved 4 slots: Propulsion x3, Utility x1 637 | -8/Materials | Build established: Scout 767 | -8/Materials | Crushed by falling debris 773 | -8/Materials | Self-destructed Last Messages --------------- 00646_ U-05 Engineer lays Concrete. 00650_ T-07 Excavator is excavating. 00655_ U-05 Engineer lays Concrete. 00657_ T-07 Excavator is excavating. 00658_ U-05 Engineer lays Concrete. 00658_ U-05 Engineer builds a Wall. 00661_ T-07 Excavator is excavating. 00664_ U-05 Engineer builds a Wall. 00688_ The unstable cave ceiling collapses. 00719_ K-01 Serf cleans the Atomic Centrifuge. 00723_ Connecting with Terminal... 00723_ Current location identified: Materials 00727_ ALERT: Suspicious intruders detected, dispatching Cutter reinforcements to area. 00729_ K-01 Serf cleans the Atomic Centrifuge. 00767_ The unstable cave ceiling collapses. 00767_ Crushed by falling debris. [Achievement: Unlikely Earthworm] 00767_ Imp. Cesium-ion Thruster destroyed. 00770_ VTOL Module destroyed. Map ----- +----------------------------------------------------+ | ?????????????????# """ #???????????????????????? | | ?????????????????# """ #???????????????????????? | | ?????????????????# #???????????????????????? | | ?????????????????# #???????????????????????? | | ?????????????????# """ #???????????????????????? | | ?????????????????# """ #???????????????????????? | | ?????????????????# """ #???????????????????????? | | ???????????# ????# #????#######????????????? | | ???????????# ""??# #????# #????????????? | | ????######## """ # ###### #????????????? | | ????# # """ + T #????????????? | | ????# # # #####+###### #????????????? | | ????# """# ?# #?# #?# #????????????? | | ##### """####??# #?# """#?## ##????????????? | | # """#?????# #?# """#??# #?????????????? | | # #?????# #?# """#??# #?????????????? | | ####+###?????# #?# """#??# #?????????????? | | """#??# #???????# #?# #??# #?????????????? | | """#??# #???????# #?##"#####??# #?????????????? | | """#??# #???????#w#??## #?????? #?????????????? | | #??# #???????# ####"######## ?????????????? | | #+###??# #???????# ??????????? | | #?## ##??????# ####g######## ????????????? | | ### #??????# #??#g###?????#####????????????? | | T #??????# #??##l##??????????????????????? | | ### ####???# #???##@#??????????????????????? | | #?###### ##### #????###??????????????????????? | | # ###???### # " #?????????????????????????????? | | # #?????# ## # ### #?????????????????????????????? | | #%#?????########## #?????????????????????????????? | | # #??????# # #?????????????????????????????? | | # #??????# # #?????????????????????????????? | | # ###????# # #?????????????????????????????? | | ###### # #?????????????????????????????? | | # # #?????????????????????????????? | | % ##### #?????????????????????????????? | | # ###???# #?????????????????????????????? | | ## ###?????#+#####?????????????????????????? | | #+#### #???????# #?????????????????????????? | | + #???????# """#?????????????????????????? | | # #???????# """#?????????????????????????? | | """ # ####????# R"#?????????????????????????? | | """ ?+ #????# """#????o????????????????????? | | """ ?### #????# +?????????????????????????? | | ????# #????# #?????????????????????????? | | ###????# #????# """ #?????????????????????????? | | ???????# #????# """ #?????????????????????????? | | ???????# #????# """ #?????????????????????????? | | ######## #????# ? +?????????????????????????? | | # #????# ??????????????????????????????? | +----------------------------------------------------+ Best States ------------- Heat Dissipation 31 Energy Generation 14 Energy Capacity 240 Matter Stores 300 Matter Capacity 300 Sight Range 16 Robot Scan Range 14 Terrain Scan Density 10 Evasion (%) 64 Item Schematics ----------------- None Robot Schematics ------------------ None Fabricated ------------ Nothing Repaired ---------- Nothing Studied --------- None Alien Tech Used ----------------- None Achievements -------------- Unlikely Earthworm Challenges ------------ None Cogshop Purchases (9) ----------------------- Sensor Array (Loot Box) Maul (Loot Box) VTOL Module (1049) VTOL Module (1049) Lgt. Ion Engine (599) Hrd. Light Armor Plating (Loot Box) Nuclear Core (Loot Box) Z-bomb Delivery System (Loot Box) Imp. Cesium-ion Thruster (1229) Game ------ Seed StorageCooledRouter Manual? 0 Play Time 00:15:25 Cumulative 41.2 hours Start 2025.11.14 @ 05:10:25 End 2025.11.14 @ 05:24:59 Sessions 1 Manual Loads 0 Difficulty Rogue Special Mode AFD2019/Pay2Buy Game No. 81 Rogue 81 Adventurer 0 Explorer 0 Win Type - Total 0 Types 0/0/0/0/0/0/0/0/0/0 Lore% 15 Gallery% 31 Achievement% 19 Wizard Run 0 Options --------- Layout 0 ASCII 0 Keyboard 0 Movement Mouse Keybinds 0 Fullscreen 2 Font 18/SmallcapsGlow Map View 76x50 Zoom Use 0% Tactical HUD 1 Map Filters NONE Filters NONE Steam 1 RUN: 1f83d5b4-25c7-4eb0-a1e8-1708c04df7ac